Workbook

Sheet Overview
B1: Finding a Minimum-Risk Portfolio
B3: The example on the next page illustrates the calculations which underlie the
B4: Capital Asset Pricing Model (CAPM).
B6: There are three investment alternatives, and our goal is to find, for any
B7: "target" expected rate of return, the portfolio for which the standard deviation
B8: of the rate of return on the portfolio (i.e., the value in cell B12) is minimal.
B10: I've set up "Solver" to solve the minimization problem, To set the target rate
B11: of return, select the equality constraint in the Solver menu-box, and click on
B12: "Change".
B14: I've also tabulated (by invoking Solver 11 separate times) the optimal
B15: portfolios, and graphed the standard deviation of the rate-of-return of the
B16: optimal portfolio below the table.
B18: Note: Don't let the final tab of this workbook frighten you. I built it in order to
B19: show that the same approach, with a bit more work, can also deal with
B20: investment opportunities for which the rates of return are not independent.
B21: Not surprisingly, for any target rate of return, there's somewhat more risk in
B22: the optimal portfolio than there was in the independent case: The risk can't
B23: be as fully "diversified away" when the covariances in rates of return are all
B24: positive.

Sheet Independent Rates of Return
B1: Independent Rates of Return
B3: budget | C3: 100
C5: Investment A | D5: Investment B | E5: Investment C
B6: E[ROR] | C6: 0.1 | D6: 0.125 | E6: 0.15
B7: Stdev[ROR] | C7: 0.03 | D7: 0.04 | E7: 0.05
B9: $ invested | C9: 32.65306123 | D9: 34.69387754 | E9: =C3-SUM(C9:D9) -> 32.65306123
B11: E[portfolio ROR] | C11: =SUMPRODUCT(C6:E6,C9:E9)/C3 -> 0.125
B12: Stdev[portfolio ROR] | C12: =SQRT(SUMPRODUCT(C9:E9^2,C7:E7^2))/C3 -> 0.02356060357
I13: risk-free ROR
I14: 0.07
C15: E[ROR] | D15: minimum-risk portfolio that achieves the target expected rate of return | G15: minimum stdev(ROR)
C16: 0.1 | D16: 100 | E16: 0 | F16: 0 | G16: 0.03 | I16: =(C16-$I$14)/G16 -> 1
C17: 0.105 | D17: 80 | E17: 20 | F17: 0 | G17: 0.02529822128 | I17: 1.383496476
C18: 0.11 | D18: 67.55102041 | E18: 24.89795918 | F18: 7.551020408 | G18: 0.02289372073 | I18: 1.747203981
C19: 0.115 | D19: 55.91836735 | E19: 28.16326531 | F19: 15.91836735 | G19: 0.02171804479 | I19: 2.072009725
C20: 0.12 | D20: 44.28571429 | E20: 31.42857143 | F20: 24.28571429 | G20: 0.0219544984 | I20: 2.277437593
C21: 0.125 | D21: 32.65306123 | E21: 34.69387754 | F21: 32.65306123 | G21: 0.02356060357 | I21: 2.334405391 | J21: market portfolio
C22: 0.13 | D22: 21.02040816 | E22: 37.95918367 | F22: 41.02040816 | G22: 0.02628649067 | I22: 2.282541278
C23: 0.135 | D23: 9.387755102 | E23: 41.2244898 | F23: 49.3877551 | G23: 0.0298267104 | I23: 2.17925474
C24: 0.14 | D24: 0 | E24: 40 | F24: 60 | G24: 0.034 | I24: 2.058823529
C25: 0.145 | D25: 0 | E25: 20 | F25: 80 | G25: 0.04079215611 | I25: 1.838588767
C26: 0.15 | D26: 0 | E26: 0 | F26: 100 | G26: 0.05 | I26: 1.6
H29: Data for tangent line
H30: 0.07 | I30: 0
H31: =C21 -> 0.125 | I31: =G21 -> 0.02356060357
H32: =H30+(H31-H30)*(I32/I31) -> 0.1867202695 | I32: 0.05

Sheet Correlated Rates of Return
B1: Correlated Rates of Return
B3: budget | C3: 100 | G3: correlation matrix | L3: covariance matrix
G4: =C7 -> 0.03 | H4: =D7 -> 0.04 | I4: =E7 -> 0.05 | L4: A | M4: B | N4: C
C5: Investment A | D5: Investment B | E5: Investment C | F5: =C7 -> 0.03 | G5: 1 | H5: 0.2 | I5: 0.3 | K5: A | L5: =F5:F7*G4:I4*G5:I7 -> 0.0009 | M5: 0.00024 | N5: 0.00045
B6: E[ROR] | C6: 0.1 | D6: 0.125 | E6: 0.15 | F6: =D7 -> 0.04 | G6: 0.2 | H6: 1 | I6: 0.45 | K6: B | L6: 0.00024 | M6: 0.0016 | N6: 0.0009
B7: Stdev[ROR] | C7: 0.03 | D7: 0.04 | E7: 0.05 | F7: =E7 -> 0.05 | G7: 0.3 | H7: 0.45 | I7: 1 | K7: C | L7: 0.00045 | M7: 0.0009 | N7: 0.0025
B9: $ invested | C9: 33.5504886 | D9: 32.8990228 | E9: =C3-SUM(C9:D9) -> 33.5504886
B11: E[portfolio ROR] | C11: =SUMPRODUCT(C6:E6,C9:E9)/C3 -> 0.125 | D11: =showformula(C11) -> =SUMPRODUCT(C6:E6,C9:E9)/C3
B12: Stdev[portfolio ROR] | C12: =SQRT(MMULT(MMULT(C9:E9,L5:N7),TRANSPOSE(C9:E9)))/C3 -> 0.03014730394 | D12: =showformula(C12) -> =SQRT(MMULT(MMULT(C9:E9,L5:N7),TRANSPOSE(C9:E9)))/C3 | I12: Excel's "matrix" commands simplify this.
C13: =SQRT(C9^2*C7^2+D9^2*D7^2+E9^2*E7^2+2*(C9*D9*H5*C7*D7+C9*E9*I5*C7*E7+D9*E9*I6*D7*E7))/C3 -> 0.03014730394 | D13: =showformula(C13) -> =SQRT(C9^2*C7^2+D9^2*D7^2+E9^2*E7^2+2*(C9*D9*H5*C7*D7+C9*E9*I5*C7*E7+D9*E9*I6*D7*E7))/C3
I14: risk-free ROR
C15: E[ROR] | D15: minimum-risk portfolio that achieves the target expected rate of return | G15: minimum stdev(ROR) | I15: 0.07
C16: 0.1 | D16: 100.000001 | E16: 0 | F16: -9.999999975e-07 | G16: 0.03000000015 | I16: =(C16-$I$15)/G16 -> 0.999999995
C17: 0.105 | D17: 80.00000186 | E17: 19.99999814 | F17: 0 | G17: 0.02677312103 | I17: =(C17-$I$15)/G17 -> 1.307281283
C18: 0.11 | D18: 64.91856678 | E18: 30.16286645 | F18: 4.918566776 | G18: 0.02608344165 | I18: 1.533539957
C19: 0.115 | D19: 54.46254072 | E19: 31.07491857 | F19: 14.46254072 | G19: 0.02658519585 | I19: 1.692671374
C20: 0.12 | D20: 44.00651466 | E20: 31.98697068 | F20: 24.00651466 | G20: 0.02798113604 | I20: 1.786918156
C21: 0.125 | D21: 33.5504886 | E21: 32.8990228 | F21: 33.5504886 | G21: 0.03014730394 | I21: 1.82437541 | J21: market portfolio
C22: 0.13 | D22: 23.09446255 | E22: 33.81107491 | F22: 43.09446255 | G22: 0.03293205917 | I22: 1.821932837
C23: 0.135 | D23: 12.63843648 | E23: 34.72312704 | F23: 52.63843648 | G23: 0.03619289617 | I23: 1.795932542
C24: 0.14 | D24: 2.182410424 | E24: 35.63517915 | F24: 62.18241042 | G24: 0.03981300755 | I24: 1.758219344
C25: 0.145 | D25: 0 | E25: 20 | F25: 80 | G25: 0.04418144407 | I25: 1.697545238
C26: 0.15 | D26: 0 | E26: 0 | F26: 100 | G26: 0.05 | I26: 1.6
H29: Data for tangent line
H30: 0.07 | I30: 0
H31: =C21 -> 0.125 | I31: =G21 -> 0.03014730394
H32: =H30+(H31-H30)*(I32/I31) -> 0.1612187705 | I32: 0.05
